[Event "Titled Tuesday Blitz August 22 Early 2023"]
[White "Kupervaser, Erez"]
[Black "Zhu, Jiner"]
[WhiteFideId "2814587"]
[BlackFideId "8608059"]
[WhiteElo "2423"]
[BlackElo "2660"]
[Result "0-1"]
[Round "7"]
[TimeControl "180+1"]
[Date "2023.08.22"]
[WhiteClock "0:00:01"]
[BlackClock "0:00:04"]
[Board "65"]

1. e4 {[%clk 0:03:00]}  e5 {[%clk 0:02:59]} 2. Nf3 {[%clk 0:02:59]}  Nc6 {[%clk 0:02:59]} 3. Bb5 {[%clk 0:02:55]}  a6 {[%clk 0:02:56]} 4. Ba4 {[%clk 0:02:55]}  d6 {[%clk 0:02:56]} 5. O-O {[%clk 0:02:53]}  g6 {[%clk 0:02:55]} 6. c3 {[%clk 0:02:48]}  Bg7 {[%clk 0:02:55]} 7. d4 {[%clk 0:02:40]}  Bd7 {[%clk 0:02:55]} 8. d5 {[%clk 0:02:32]}  Nce7 {[%clk 0:02:52]} 9. Bc2 {[%clk 0:02:27]}  h6 {[%clk 0:02:49]} 10. c4 {[%clk 0:02:27]}  f5 {[%clk 0:02:49]} 11. Nc3 {[%clk 0:02:27]}  Nf6 {[%clk 0:02:49]} 12. exf5 {[%clk 0:02:23]}  Nxf5 {[%clk 0:02:26]} 13. c5 {[%clk 0:02:17]}  O-O {[%clk 0:02:24]} 14. Re1 {[%clk 0:01:48]}  Kh8 {[%clk 0:02:07]} 15. Rb1 {[%clk 0:01:41]}  Qe8 {[%clk 0:02:00]} 16. b4 {[%clk 0:01:38]}  Qf7 {[%clk 0:01:59]} 17. Bb3 {[%clk 0:01:30]}  Rae8 {[%clk 0:01:54]} 18. c6 {[%clk 0:01:22]}  Bc8 {[%clk 0:01:54]} 19. b5 {[%clk 0:01:20]}  e4 {[%clk 0:01:33]} 20. Nd2 {[%clk 0:01:03]}  e3 {[%clk 0:01:32]} 21. fxe3 {[%clk 0:00:38]}  Nxe3 {[%clk 0:01:32]} 22. Qf3 {[%clk 0:00:38]}  Nfg4 {[%clk 0:01:03]} 23. Qxf7 {[%clk 0:00:35]}  Rxf7 {[%clk 0:01:04]} 24. Nde4 {[%clk 0:00:35]}  Bd4 {[%clk 0:01:00]} 25. Bxe3 {[%clk 0:00:24]}  Bxe3+ {[%clk 0:00:58]} 26. Kh1 {[%clk 0:00:24]}  axb5 {[%clk 0:00:35]} 27. h3 {[%clk 0:00:24]}  Bf2 {[%clk 0:00:20]} 28. hxg4 {[%clk 0:00:20]}  Bxe1 {[%clk 0:00:20]} 29. Rxe1 {[%clk 0:00:21]}  b4 {[%clk 0:00:18]} 30. Nb5 {[%clk 0:00:20]}  Rfe7 {[%clk 0:00:17]} 31. Bc2 {[%clk 0:00:15]}  bxc6 {[%clk 0:00:17]} 32. dxc6 {[%clk 0:00:15]}  Bxg4 {[%clk 0:00:18]} 33. Rf1 {[%clk 0:00:13]}  Bf5 {[%clk 0:00:16]} 34. Nf6 {[%clk 0:00:11]}  Rf8 {[%clk 0:00:08]} 35. Bxf5 {[%clk 0:00:10]}  Rxf6 {[%clk 0:00:08]} 36. Bd3 {[%clk 0:00:09]}  Rxf1+ {[%clk 0:00:08]} 37. Bxf1 {[%clk 0:00:10]}  Kg7 {[%clk 0:00:08]} 38. Kg1 {[%clk 0:00:10]}  Kf6 {[%clk 0:00:08]} 39. Kf2 {[%clk 0:00:10]}  Ke5 {[%clk 0:00:08]} 40. Bd3 {[%clk 0:00:10]}  g5 {[%clk 0:00:07]} 41. Be2 {[%clk 0:00:10]}  Kd5 {[%clk 0:00:07]} 42. Bf3+ {[%clk 0:00:11]}  Kc5 {[%clk 0:00:07]} 43. Na7 {[%clk 0:00:11]}  d5 {[%clk 0:00:04]} 44. Nc8 {[%clk 0:00:06]}  Re5 {[%clk 0:00:04]} 45. Kg3 {[%clk 0:00:05]}  d4 {[%clk 0:00:04]} 46. Kf2 {[%clk 0:00:05]}  d3 {[%clk 0:00:05]} 47. Na7 {[%clk 0:00:04]}  Kd4 {[%clk 0:00:04]} 48. Nb5+ {[%clk 0:00:01]}  Rxb5 {[%clk 0:00:04]} 0-1


[Site "https://www.chess.com"]

[Event "Titled Tuesday Blitz August 22 Early 2023"]
[White "Ozalp, Burak"]
[Black "ArtemDyachuk"]
[WhiteFideId "6314210"]
[WhiteElo "2396"]
[BlackElo "2540"]
[Result "0-1"]
[Round "7"]
[TimeControl "180+1"]
[Date "2023.08.22"]
[WhiteClock "0:00:05"]
[BlackClock "0:00:11"]
[Board "66"]

1. e4 {[%clk 0:03:00]}  c6 {[%clk 0:02:59]} 2. Nf3 {[%clk 0:02:58]}  d5 {[%clk 0:02:59]} 3. d3 {[%clk 0:02:59]}  Qc7 {[%clk 0:02:58]} 4. Nbd2 {[%clk 0:02:55]}  e5 {[%clk 0:02:56]} 5. g3 {[%clk 0:02:54]}  Bd6 {[%clk 0:02:56]} 6. Bg2 {[%clk 0:02:54]}  Nf6 {[%clk 0:02:56]} 7. O-O {[%clk 0:02:55]}  O-O {[%clk 0:02:56]} 8. Re1 {[%clk 0:02:40]}  Na6 {[%clk 0:02:51]} 9. c3 {[%clk 0:02:40]}  Nc5 {[%clk 0:02:50]} 10. Qc2 {[%clk 0:02:40]}  dxe4 {[%clk 0:02:50]} 11. dxe4 {[%clk 0:02:40]}  b5 {[%clk 0:02:38]} 12. b4 {[%clk 0:02:16]}  Ne6 {[%clk 0:02:37]} 13. Nb3 {[%clk 0:02:15]}  c5 {[%clk 0:02:28]} 14. bxc5 {[%clk 0:02:12]}  Nxc5 {[%clk 0:02:29]} 15. Nxc5 {[%clk 0:02:10]}  Bxc5 {[%clk 0:02:26]} 16. Bg5 {[%clk 0:02:08]}  Ng4 {[%clk 0:02:26]} 17. Rf1 {[%clk 0:01:46]}  h6 {[%clk 0:02:25]} 18. Bc1 {[%clk 0:01:44]}  Be6 {[%clk 0:02:20]} 19. h3 {[%clk 0:01:44]}  Nf6 {[%clk 0:02:20]} 20. Bb2 {[%clk 0:01:32]}  Bc4 {[%clk 0:02:19]} 21. Rfe1 {[%clk 0:01:28]}  Rfd8 {[%clk 0:02:07]} 22. Rad1 {[%clk 0:01:24]}  Bxa2 {[%clk 0:01:59]} 23. Ba3 {[%clk 0:01:23]}  Bc4 {[%clk 0:01:54]} 24. Bxc5 {[%clk 0:01:20]}  Qxc5 {[%clk 0:01:55]} 25. Nh4 {[%clk 0:01:12]}  a5 {[%clk 0:01:49]} 26. Nf5 {[%clk 0:01:11]}  a4 {[%clk 0:01:49]} 27. Qc1 {[%clk 0:01:07]}  Kh7 {[%clk 0:01:47]} 28. g4 {[%clk 0:01:01]}  a3 {[%clk 0:01:43]} 29. g5 {[%clk 0:01:01]}  Nh5 {[%clk 0:01:40]} 30. gxh6 {[%clk 0:00:59]}  g6 {[%clk 0:01:40]} 31. Qg5 {[%clk 0:00:55]}  Rxd1 {[%clk 0:01:29]} 32. Rxd1 {[%clk 0:00:50]}  a2 {[%clk 0:01:29]} 33. Ra1 {[%clk 0:00:20]}  Be6 {[%clk 0:01:20]} 34. Kh2 {[%clk 0:00:18]}  Qxf2 {[%clk 0:01:14]} 35. Qe7 {[%clk 0:00:17]}  Qf4+ {[%clk 0:01:08]} 36. Kh1 {[%clk 0:00:17]}  Rg8 {[%clk 0:00:30]} 37. Nd6 {[%clk 0:00:11]}  Ng3+ {[%clk 0:00:26]} 38. Kg1 {[%clk 0:00:11]}  Ne2+ {[%clk 0:00:23]} 39. Kh1 {[%clk 0:00:10]}  Bxh3 {[%clk 0:00:12]} 40. Bxh3 {[%clk 0:00:09]}  Qf3+ {[%clk 0:00:11]} 41. Bg2 {[%clk 0:00:09]}  Qh5+ {[%clk 0:00:11]} 42. Bh3 {[%clk 0:00:05]}  Qxh3# {[%clk 0:00:11]} 0-1


[Site "https://www.chess.com"]

[Event "Titled Tuesday Blitz August 22 Early 2023"]
[White "Tahbaz, Arash"]
[Black "Young_Catalan_Player09"]
[WhiteFideId "12528846"]
[WhiteElo "2892"]
[BlackElo "2407"]
[Result "0-1"]
[Round "7"]
[TimeControl "180+1"]
[Date "2023.08.22"]
[WhiteClock "0:00:00"]
[BlackClock "0:01:23"]
[Board "67"]

1. Nf3 {[%clk 0:02:52]}  Nf6 {[%clk 0:02:59]} 2. g3 {[%clk 0:00:05]}  d5 {[%clk 0:02:58]} 3. Bg2 {[%clk 0:00:05]}  c6 {[%clk 0:02:56]} 4. O-O {[%clk 0:00:06]}  Bg4 {[%clk 0:02:54]} 5. d3 {[%clk 0:00:07]}  Nbd7 {[%clk 0:02:53]} 6. Nbd2 {[%clk 0:00:08]}  e6 {[%clk 0:02:52]} 7. e4 {[%clk 0:00:09]}  Bd6 {[%clk 0:02:44]} 8. h3 {[%clk 0:00:09]}  Bxf3 {[%clk 0:02:42]} 9. Qxf3 {[%clk 0:00:08]}  O-O {[%clk 0:02:41]} 10. Qe2 {[%clk 0:00:08]}  Re8 {[%clk 0:02:39]} 11. f4 {[%clk 0:00:08]}  e5 {[%clk 0:02:32]} 12. f5 {[%clk 0:00:07]}  dxe4 {[%clk 0:02:30]} 13. dxe4 {[%clk 0:00:07]}  h6 {[%clk 0:02:17]} 14. g4 {[%clk 0:00:07]}  Nh7 {[%clk 0:02:13]} 15. Nf3 {[%clk 0:00:06]}  Be7 {[%clk 0:02:13]} 16. Be3 {[%clk 0:00:05]}  Ng5 {[%clk 0:02:12]} 17. Nd2 {[%clk 0:00:05]}  Bc5 {[%clk 0:02:11]} 18. Kh2 {[%clk 0:00:03]}  Bxe3 {[%clk 0:02:08]} 19. Qxe3 {[%clk 0:00:04]}  Qb6 {[%clk 0:02:09]} 20. Nc4 {[%clk 0:00:04]}  Qxe3 {[%clk 0:02:08]} 21. Nxe3 {[%clk 0:00:05]}  Nf6 {[%clk 0:02:02]} 22. Rfd1 {[%clk 0:00:02]}  Rad8 {[%clk 0:01:59]} 23. Nc4 {[%clk 0:00:03]}  Ngxe4 {[%clk 0:01:55]} 24. Na5 {[%clk 0:00:03]}  Nf2 {[%clk 0:01:32]} 25. Rxd8 {[%clk 0:00:03]}  Rxd8 {[%clk 0:01:33]} 26. Nxb7 {[%clk 0:00:02]}  Rd2 {[%clk 0:01:33]} 27. Rc1 {[%clk 0:00:03]}  e4 {[%clk 0:01:30]} 28. Kg1 {[%clk 0:00:03]}  e3 {[%clk 0:01:29]} 29. Kf1 {[%clk 0:00:04]}  N6e4 {[%clk 0:01:27]} 30. Na5 {[%clk 0:00:00]}  e2+ {[%clk 0:01:23]} 0-1


[Site "https://www.chess.com"]

[Event "Titled Tuesday Blitz August 22 Early 2023"]
[White "Yurovskykh, Oleksandr"]
[Black "Starozhilov, Leonid"]
[WhiteFideId "14134020"]
[BlackFideId "14106752"]
[WhiteElo "2582"]
[BlackElo "2754"]
[Result "1/2-1/2"]
[Round "7"]
[TimeControl "180+1"]
[Date "2023.08.22"]
[WhiteClock "0:00:04"]
[BlackClock "0:00:04"]
[Board "71"]

1. b3 {[%clk 0:03:00]}  d5 {[%clk 0:02:59]} 2. Nf3 {[%clk 0:02:59]}  Bf5 {[%clk 0:03:00]} 3. Bb2 {[%clk 0:02:59]}  e6 {[%clk 0:03:00]} 4. g3 {[%clk 0:02:59]}  h6 {[%clk 0:03:00]} 5. Bg2 {[%clk 0:03:00]}  Nf6 {[%clk 0:03:01]} 6. O-O {[%clk 0:03:00]}  Be7 {[%clk 0:03:01]} 7. d3 {[%clk 0:03:01]}  O-O {[%clk 0:03:02]} 8. Nbd2 {[%clk 0:03:01]}  Bh7 {[%clk 0:03:02]} 9. Re1 {[%clk 0:02:55]}  a5 {[%clk 0:03:02]} 10. a4 {[%clk 0:02:55]}  Nbd7 {[%clk 0:03:03]} 11. e4 {[%clk 0:02:55]}  c6 {[%clk 0:03:03]} 12. Qe2 {[%clk 0:02:55]}  Nc5 {[%clk 0:03:02]} 13. Ne5 {[%clk 0:02:54]}  Nfd7 {[%clk 0:03:02]} 14. Nxd7 {[%clk 0:02:52]}  Nxd7 {[%clk 0:03:02]} 15. f4 {[%clk 0:02:50]}  Bf6 {[%clk 0:03:00]} 16. Bxf6 {[%clk 0:02:18]}  Qxf6 {[%clk 0:03:01]} 17. e5 {[%clk 0:02:15]}  Qe7 {[%clk 0:02:58]} 18. Nf3 {[%clk 0:02:15]}  Rfc8 {[%clk 0:02:43]} 19. Nd4 {[%clk 0:02:12]}  Qb4 {[%clk 0:02:36]} 20. Qf2 {[%clk 0:02:10]}  b5 {[%clk 0:02:33]} 21. Bh3 {[%clk 0:01:53]}  Nc5 {[%clk 0:02:12]} 22. axb5 {[%clk 0:01:33]}  cxb5 {[%clk 0:02:13]} 23. f5 {[%clk 0:01:31]}  exf5 {[%clk 0:01:53]} 24. Bxf5 {[%clk 0:01:31]}  Bxf5 {[%clk 0:01:42]} 25. Nxf5 {[%clk 0:01:30]}  Ne6 {[%clk 0:01:42]} 26. Nd6 {[%clk 0:01:22]}  Rc7 {[%clk 0:01:31]} 27. c4 {[%clk 0:01:22]}  bxc4 {[%clk 0:01:18]} 28. bxc4 {[%clk 0:01:22]}  dxc4 {[%clk 0:01:18]} 29. dxc4 {[%clk 0:01:22]}  Qc5 {[%clk 0:01:09]} 30. Re2 {[%clk 0:01:04]}  Nd4 {[%clk 0:00:56]} 31. Re4 {[%clk 0:00:40]}  Nb3 {[%clk 0:00:41]} 32. Qxc5 {[%clk 0:00:32]}  Nxc5 {[%clk 0:00:34]} 33. Re3 {[%clk 0:00:27]}  a4 {[%clk 0:00:34]} 34. Ne4 {[%clk 0:00:20]}  Nxe4 {[%clk 0:00:19]} 35. Rxe4 {[%clk 0:00:21]}  Rc5 {[%clk 0:00:18]} 36. Ra3 {[%clk 0:00:19]}  Rca5 {[%clk 0:00:16]} 37. c5 {[%clk 0:00:18]}  Rxc5 {[%clk 0:00:16]} 38. Rexa4 {[%clk 0:00:18]}  Rxa4 {[%clk 0:00:16]} 39. Rxa4 {[%clk 0:00:19]}  Rxe5 {[%clk 0:00:17]} 40. Kg2 {[%clk 0:00:20]}  Re2+ {[%clk 0:00:16]} 41. Kg1 {[%clk 0:00:18]}  h5 {[%clk 0:00:09]} 42. Ra5 {[%clk 0:00:17]}  g6 {[%clk 0:00:10]} 43. Ra6 {[%clk 0:00:17]}  Rb2 {[%clk 0:00:10]} 44. Rc6 {[%clk 0:00:17]}  Kg7 {[%clk 0:00:10]} 45. h4 {[%clk 0:00:17]}  Re2 {[%clk 0:00:05]} 46. Rd6 {[%clk 0:00:17]}  Re6 {[%clk 0:00:05]} 47. Rd5 {[%clk 0:00:18]}  Kf6 {[%clk 0:00:04]} 48. Kg2 {[%clk 0:00:18]}  Re5 {[%clk 0:00:05]} 49. Rd6+ {[%clk 0:00:18]}  Ke7 {[%clk 0:00:05]} 50. Rd4 {[%clk 0:00:17]}  f6 {[%clk 0:00:05]} 51. Kf3 {[%clk 0:00:17]}  g5 {[%clk 0:00:06]} 52. hxg5 {[%clk 0:00:17]}  fxg5 {[%clk 0:00:07]} 53. Ra4 {[%clk 0:00:17]}  Kf6 {[%clk 0:00:06]} 54. Rb4 {[%clk 0:00:17]}  Kf5 {[%clk 0:00:06]} 55. Ra4 {[%clk 0:00:14]}  Rb5 {[%clk 0:00:06]} 56. g4+ {[%clk 0:00:08]}  hxg4+ {[%clk 0:00:06]} 57. Kg3 {[%clk 0:00:08]}  Rb3+ {[%clk 0:00:06]} 58. Kg2 {[%clk 0:00:08]}  g3 {[%clk 0:00:06]} 59. Rc4 {[%clk 0:00:07]}  Kg6 {[%clk 0:00:04]} 60. Rc8 {[%clk 0:00:04]}  Kh5 {[%clk 0:00:04]} 61. Rc4 {[%clk 0:00:04]}  g4 {[%clk 0:00:03]} 62. Rc8 {[%clk 0:00:04]}  Kh4 {[%clk 0:00:03]} 63. Rh8+ {[%clk 0:00:04]}  Kg5 {[%clk 0:00:04]} 64. Rg8+ {[%clk 0:00:04]}  Kf5 {[%clk 0:00:04]} 65. Rf8+ {[%clk 0:00:05]}  Kg6 {[%clk 0:00:04]} 66. Rg8+ {[%clk 0:00:04]}  Kf5 {[%clk 0:00:04]} 1/2-1/2


[Site "https://www.chess.com"]

[Event "Titled Tuesday Blitz August 22 Early 2023"]
[White "Martinez Reyes, Pedro Ramon"]
[Black "Zhao, Jun"]
[WhiteFideId "3901807"]
[BlackFideId "8602522"]
[WhiteElo "2558"]
[BlackElo "2695"]
[Result "0-1"]
[Round "7"]
[TimeControl "180+1"]
[Date "2023.08.22"]
[WhiteClock "0:00:01"]
[BlackClock "0:00:17"]
[Board "73"]

1. d4 {[%clk 0:03:00]}  Nf6 {[%clk 0:02:56]} 2. c4 {[%clk 0:03:00]}  g6 {[%clk 0:02:56]} 3. Nc3 {[%clk 0:03:00]}  d5 {[%clk 0:02:57]} 4. Bf4 {[%clk 0:02:54]}  Bg7 {[%clk 0:02:56]} 5. e3 {[%clk 0:02:51]}  O-O {[%clk 0:02:57]} 6. Rc1 {[%clk 0:02:51]}  c5 {[%clk 0:02:57]} 7. dxc5 {[%clk 0:02:48]}  Be6 {[%clk 0:02:52]} 8. Nf3 {[%clk 0:02:42]}  Nc6 {[%clk 0:02:50]} 9. Ng5 {[%clk 0:02:34]}  Qa5 {[%clk 0:02:50]} 10. Nxe6 {[%clk 0:02:30]}  fxe6 {[%clk 0:02:50]} 11. Qa4 {[%clk 0:02:25]}  Qd8 {[%clk 0:02:30]} 12. cxd5 {[%clk 0:02:15]}  exd5 {[%clk 0:02:30]} 13. Bb5 {[%clk 0:02:12]}  e5 {[%clk 0:02:30]} 14. Bg5 {[%clk 0:02:10]}  d4 {[%clk 0:02:19]} 15. Ne4 {[%clk 0:01:41]}  Kh8 {[%clk 0:02:17]} 16. Bxf6 {[%clk 0:01:34]}  Bxf6 {[%clk 0:02:17]} 17. Bxc6 {[%clk 0:01:32]}  bxc6 {[%clk 0:02:16]} 18. O-O {[%clk 0:01:32]}  Qd5 {[%clk 0:02:16]} 19. Nxf6 {[%clk 0:01:26]}  Rxf6 {[%clk 0:02:16]} 20. exd4 {[%clk 0:01:27]}  exd4 {[%clk 0:02:16]} 21. Rfd1 {[%clk 0:01:25]}  d3 {[%clk 0:02:08]} 22. Qc4 {[%clk 0:01:20]}  Rd8 {[%clk 0:02:06]} 23. Qc3 {[%clk 0:01:05]}  Qf5 {[%clk 0:01:58]} 24. Rd2 {[%clk 0:01:02]}  Kg8 {[%clk 0:01:54]} 25. Re1 {[%clk 0:00:58]}  Rf7 {[%clk 0:01:52]} 26. Ree2 {[%clk 0:00:57]}  dxe2 {[%clk 0:01:35]} 27. Rxd8+ {[%clk 0:00:55]}  Rf8 {[%clk 0:01:35]} 28. Qc4+ {[%clk 0:00:52]}  Kg7 {[%clk 0:01:33]} 29. Qc3+ {[%clk 0:00:42]}  Qf6 {[%clk 0:00:30]} 30. Rd7+ {[%clk 0:00:12]}  Rf7 {[%clk 0:00:30]} 31. Rxf7+ {[%clk 0:00:10]}  Kxf7 {[%clk 0:00:30]} 32. Qc4+ {[%clk 0:00:10]}  Qe6 {[%clk 0:00:31]} 33. Qf4+ {[%clk 0:00:09]}  Kg8 {[%clk 0:00:22]} 34. Qb8+ {[%clk 0:00:09]}  Kg7 {[%clk 0:00:22]} 35. Qc7+ {[%clk 0:00:08]}  Kh6 {[%clk 0:00:19]} 36. Qf4+ {[%clk 0:00:07]}  g5 {[%clk 0:00:19]} 37. Qf8+ {[%clk 0:00:04]}  Kg6 {[%clk 0:00:17]} 38. Qg8+ {[%clk 0:00:01]} 0-1


[Site "https://www.chess.com"]

[Event "Titled Tuesday Blitz August 22 Early 2023"]
[White "Timmermans, Mark"]
[Black "Postlmayer, Jakob"]
[WhiteFideId "1026399"]
[BlackFideId "1643622"]
[WhiteElo "2694"]
[BlackElo "2554"]
[Result "0-1"]
[Round "7"]
[TimeControl "180+1"]
[Date "2023.08.22"]
[WhiteClock "0:00:18"]
[BlackClock "0:00:20"]
[Board "74"]

1. e4 {[%clk 0:02:59]}  e5 {[%clk 0:02:58]} 2. Nf3 {[%clk 0:02:52]}  Nf6 {[%clk 0:02:58]} 3. Nxe5 {[%clk 0:02:47]}  d6 {[%clk 0:02:57]} 4. Nc4 {[%clk 0:02:46]}  Nxe4 {[%clk 0:02:57]} 5. Ne3 {[%clk 0:02:45]}  d5 {[%clk 0:02:55]} 6. d3 {[%clk 0:02:44]}  Nf6 {[%clk 0:02:55]} 7. d4 {[%clk 0:02:44]}  g6 {[%clk 0:02:43]} 8. Bd3 {[%clk 0:02:45]}  Bg7 {[%clk 0:02:43]} 9. O-O {[%clk 0:02:43]}  O-O {[%clk 0:02:43]} 10. a4 {[%clk 0:02:41]}  c6 {[%clk 0:02:42]} 11. a5 {[%clk 0:02:41]}  Re8 {[%clk 0:02:40]} 12. b3 {[%clk 0:02:29]}  Nbd7 {[%clk 0:02:38]} 13. Bb2 {[%clk 0:02:29]}  Ne4 {[%clk 0:02:33]} 14. Nd2 {[%clk 0:02:29]}  Ndf6 {[%clk 0:02:31]} 15. Nf3 {[%clk 0:02:28]}  Ng4 {[%clk 0:02:28]} 16. Ne5 {[%clk 0:02:08]}  Nxe5 {[%clk 0:02:13]} 17. Bxe4 {[%clk 0:02:08]}  Ng4 {[%clk 0:01:38]} 18. Nxg4 {[%clk 0:01:45]}  Bxg4 {[%clk 0:01:38]} 19. Bf3 {[%clk 0:01:45]}  Bxf3 {[%clk 0:01:37]} 20. Qxf3 {[%clk 0:01:45]}  Re4 {[%clk 0:01:36]} 21. a6 {[%clk 0:01:44]}  b5 {[%clk 0:01:32]} 22. c4 {[%clk 0:01:38]}  bxc4 {[%clk 0:01:29]} 23. bxc4 {[%clk 0:01:39]}  Bxd4 {[%clk 0:01:28]} 24. Bxd4 {[%clk 0:01:39]}  Rxd4 {[%clk 0:01:28]} 25. Rfc1 {[%clk 0:01:35]}  dxc4 {[%clk 0:01:21]} 26. Qxc6 {[%clk 0:01:36]}  Rc8 {[%clk 0:01:20]} 27. Qb7 {[%clk 0:01:31]}  Rd7 {[%clk 0:01:19]} 28. Qb4 {[%clk 0:01:30]}  c3 {[%clk 0:01:11]} 29. h3 {[%clk 0:01:28]}  c2 {[%clk 0:01:10]} 30. Qb3 {[%clk 0:01:28]}  Rd2 {[%clk 0:01:06]} 31. Qe3 {[%clk 0:01:26]}  Qd4 {[%clk 0:00:56]} 32. Qxd4 {[%clk 0:01:20]}  Rxd4 {[%clk 0:00:57]} 33. Kf1 {[%clk 0:01:20]}  Rd2 {[%clk 0:00:53]} 34. Ke1 {[%clk 0:01:17]}  Rcd8 {[%clk 0:00:53]} 35. h4 {[%clk 0:01:14]}  Kg7 {[%clk 0:00:52]} 36. g3 {[%clk 0:01:08]}  R8d5 {[%clk 0:00:44]} 37. Kf1 {[%clk 0:00:33]}  Rf5 {[%clk 0:00:38]} 38. Ra2 {[%clk 0:00:17]}  Rfxf2+ {[%clk 0:00:37]} 39. Kg1 {[%clk 0:00:18]}  h5 {[%clk 0:00:26]} 40. Rb2 {[%clk 0:00:17]}  Rfe2 {[%clk 0:00:22]} 41. Kf1 {[%clk 0:00:17]}  Rh2 {[%clk 0:00:22]} 42. Kg1 {[%clk 0:00:17]}  Rhg2+ {[%clk 0:00:20]} 43. Kf1 {[%clk 0:00:17]}  Rxg3 {[%clk 0:00:21]} 44. Rbxc2 {[%clk 0:00:17]}  Rxc2 {[%clk 0:00:22]} 45. Rxc2 {[%clk 0:00:18]}  Ra3 {[%clk 0:00:21]} 46. Rc6 {[%clk 0:00:18]}  Ra4 {[%clk 0:00:21]} 47. Kg2 {[%clk 0:00:17]}  Rxh4 {[%clk 0:00:20]} 48. Rc7 {[%clk 0:00:18]}  Ra4 {[%clk 0:00:20]} 49. Rxa7 {[%clk 0:00:18]}  g5 {[%clk 0:00:20]} 50. Ra8 {[%clk 0:00:19]}  g4 {[%clk 0:00:20]} 51. a7 {[%clk 0:00:20]}  f5 {[%clk 0:00:19]} 52. Kf2 {[%clk 0:00:21]}  f4 {[%clk 0:00:20]} 53. Ke2 {[%clk 0:00:20]}  Ra2+ {[%clk 0:00:20]} 54. Kd3 {[%clk 0:00:18]}  f3 {[%clk 0:00:20]} 0-1


[Site "https://www.chess.com"]

[Event "Titled Tuesday Blitz August 22 Early 2023"]
[White "Badelka, Olga"]
[Black "Hoang, Thi Bao Tram"]
[WhiteFideId "13509926"]
[BlackFideId "12401102"]
[WhiteElo "2549"]
[BlackElo "2694"]
[Result "1-0"]
[Round "7"]
[TimeControl "180+1"]
[Date "2023.08.22"]
[WhiteClock "0:00:04"]
[BlackClock "0:00:00"]
[Board "75"]

1. c4 {[%clk 0:03:00]}  c6 {[%clk 0:02:58]} 2. d4 {[%clk 0:02:59]}  d5 {[%clk 0:02:58]} 3. Nf3 {[%clk 0:03:00]}  Nf6 {[%clk 0:02:58]} 4. e3 {[%clk 0:03:00]}  g6 {[%clk 0:02:55]} 5. Nc3 {[%clk 0:02:51]}  Bg7 {[%clk 0:02:55]} 6. Be2 {[%clk 0:02:50]}  O-O {[%clk 0:02:54]} 7. O-O {[%clk 0:02:50]}  a6 {[%clk 0:02:54]} 8. a3 {[%clk 0:02:45]}  b5 {[%clk 0:02:35]} 9. cxd5 {[%clk 0:02:41]}  cxd5 {[%clk 0:02:35]} 10. Bd2 {[%clk 0:02:40]}  Bb7 {[%clk 0:02:34]} 11. Rc1 {[%clk 0:02:40]}  Nbd7 {[%clk 0:02:33]} 12. a4 {[%clk 0:02:30]}  b4 {[%clk 0:02:31]} 13. Nb1 {[%clk 0:02:23]}  a5 {[%clk 0:02:25]} 14. Be1 {[%clk 0:02:23]}  Nb6 {[%clk 0:02:08]} 15. Nbd2 {[%clk 0:02:18]}  Ne8 {[%clk 0:02:02]} 16. Bb5 {[%clk 0:02:12]}  Nd6 {[%clk 0:02:02]} 17. Bd3 {[%clk 0:02:01]}  Qd7 {[%clk 0:01:55]} 18. b3 {[%clk 0:02:00]}  Rfc8 {[%clk 0:01:51]} 19. Ne5 {[%clk 0:02:00]}  Qe8 {[%clk 0:01:47]} 20. f4 {[%clk 0:01:50]}  f6 {[%clk 0:01:40]} 21. Ng4 {[%clk 0:01:42]}  Qd7 {[%clk 0:01:35]} 22. Rxc8+ {[%clk 0:01:40]}  Rxc8 {[%clk 0:01:33]} 23. h4 {[%clk 0:01:21]}  Ne4 {[%clk 0:00:56]} 24. Nxe4 {[%clk 0:01:16]}  dxe4 {[%clk 0:00:56]} 25. Bb5 {[%clk 0:01:13]}  Qe6 {[%clk 0:00:51]} 26. h5 {[%clk 0:01:05]}  Bd5 {[%clk 0:00:47]} 27. hxg6 {[%clk 0:00:26]}  hxg6 {[%clk 0:00:47]} 28. Nf2 {[%clk 0:00:18]}  Bxb3 {[%clk 0:00:43]} 29. Qb1 {[%clk 0:00:18]}  Bc2 {[%clk 0:00:42]} 30. Qb2 {[%clk 0:00:17]}  f5 {[%clk 0:00:21]} 31. Bd2 {[%clk 0:00:11]}  Qb3 {[%clk 0:00:16]} 32. Qa1 {[%clk 0:00:11]}  Nxa4 {[%clk 0:00:14]} 33. Rc1 {[%clk 0:00:08]}  Bf6 {[%clk 0:00:12]} 34. Bxa4 {[%clk 0:00:07]}  Qxa4 {[%clk 0:00:10]} 35. Qxa4 {[%clk 0:00:07]}  Bxa4 {[%clk 0:00:10]} 36. Rxc8+ {[%clk 0:00:08]}  Kf7 {[%clk 0:00:11]} 37. Ra8 {[%clk 0:00:07]}  g5 {[%clk 0:00:09]} 38. Rxa5 {[%clk 0:00:07]}  Bd7 {[%clk 0:00:09]} 39. fxg5 {[%clk 0:00:07]}  Bxg5 {[%clk 0:00:10]} 40. Nd1 {[%clk 0:00:06]}  Be6 {[%clk 0:00:09]} 41. Bxb4 {[%clk 0:00:05]}  Bb3 {[%clk 0:00:09]} 42. Ra1 {[%clk 0:00:05]}  Bxd1 {[%clk 0:00:09]} 43. Rxd1 {[%clk 0:00:06]}  Bxe3+ {[%clk 0:00:10]} 44. Kf1 {[%clk 0:00:06]}  Bf4 {[%clk 0:00:09]} 45. Ke2 {[%clk 0:00:06]}  Ke6 {[%clk 0:00:09]} 46. Bd2 {[%clk 0:00:06]}  Bd6 {[%clk 0:00:09]} 47. Rf1 {[%clk 0:00:05]}  Bc7 {[%clk 0:00:07]} 48. Be3 {[%clk 0:00:05]}  Bd6 {[%clk 0:00:07]} 49. Bf4 {[%clk 0:00:05]}  Bb4 {[%clk 0:00:07]} 50. Be5 {[%clk 0:00:05]}  Bc3 {[%clk 0:00:06]} 51. Ke3 {[%clk 0:00:06]}  Bb4 {[%clk 0:00:06]} 52. Rb1 {[%clk 0:00:06]}  Ba3 {[%clk 0:00:05]} 53. Ra1 {[%clk 0:00:05]}  Bb4 {[%clk 0:00:04]} 54. Ra6+ {[%clk 0:00:05]}  Kd5 {[%clk 0:00:04]} 55. g4 {[%clk 0:00:04]}  fxg4 {[%clk 0:00:04]} 56. Rg6 {[%clk 0:00:05]}  Ba3 {[%clk 0:00:03]} 57. Rxg4 {[%clk 0:00:05]}  Bc1+ {[%clk 0:00:03]} 58. Ke2 {[%clk 0:00:05]}  e6 {[%clk 0:00:00]} 59. Rg8 {[%clk 0:00:04]} 1-0


[Site "https://www.chess.com"]